[Event "Early-Titled-Tuesday-Blitz-January-16-2024"]
[Site "Chess.com"]
[Date "2024.01.16"]
[Round "3"]
[White "Bigfish1995"]
[Black "Rodalquilar"]
[Result "1/2-1/2"]
[WhiteElo "3035"]
[BlackElo "2775"]
[TimeControl "180+1"]
[EndTime "8:32:30 PST"]
[Termination "Game drawn by 50-move rule"]

1. e4 {[%clk 0:03:00.9]} 1... d5 {[%clk 0:02:59.7]} 2. exd5 {[%clk 0:02:59.5]}
2... Qxd5 {[%clk 0:03:00.6]} 3. Nc3 {[%clk 0:02:54.8]} 3... Qa5 {[%clk
0:03:00.7]} 4. d4 {[%clk 0:02:53.1]} 4... Nf6 {[%clk 0:03:01.1]} 5. Nf3 {[%clk
0:02:51.3]} 5... Bf5 {[%clk 0:03:01.1]} 6. Bd2 {[%clk 0:02:37.9]} 6... e6 {[%clk
0:03:00.7]} 7. a3 {[%clk 0:02:18.4]} 7... c6 {[%clk 0:02:39.2]} 8. h3 {[%clk
0:02:10]} 8... Nbd7 {[%clk 0:02:32.3]} 9. Nh4 {[%clk 0:02:08.6]} 9... Bg6 {[%clk
0:02:28.9]} 10. Nxg6 {[%clk 0:02:08.2]} 10... hxg6 {[%clk 0:02:29.1]} 11. Bd3
{[%clk 0:02:08.1]} 11... Qc7 {[%clk 0:02:26.4]} 12. Qf3 {[%clk 0:02:06.3]} 12...
Bd6 {[%clk 0:02:19.9]} 13. O-O-O {[%clk 0:02:04.2]} 13... O-O-O {[%clk
0:02:19.7]} 14. g4 {[%clk 0:02:02]} 14... Rdf8 {[%clk 0:02:12.4]} 15. Kb1 {[%clk
0:01:51.3]} 15... Kb8 {[%clk 0:02:12.1]} 16. h4 {[%clk 0:01:50.1]} 16... Nd5
{[%clk 0:02:01.8]} 17. Ne2 {[%clk 0:01:38.8]} 17... c5 {[%clk 0:01:53.8]} 18. c4
{[%clk 0:01:32.3]} 18... N5b6 {[%clk 0:01:54]} 19. b4 {[%clk 0:01:23.3]} 19...
cxb4 {[%clk 0:01:54.3]} 20. c5 {[%clk 0:01:23.6]} 20... bxa3 {[%clk 0:01:47.3]}
21. cxd6 {[%clk 0:01:16.9]} 21... Qxd6 {[%clk 0:01:47.8]} 22. Qg3 {[%clk
0:01:11]} 22... e5 {[%clk 0:01:28.8]} 23. dxe5 {[%clk 0:01:11.2]} 23... Nxe5
{[%clk 0:01:29]} 24. Qxe5 {[%clk 0:01:10.5]} 24... Qxe5 {[%clk 0:01:29.7]} 25.
Bf4 {[%clk 0:01:11.1]} 25... Qxf4 {[%clk 0:01:15.5]} 26. Nxf4 {[%clk 0:01:12]}
26... Rd8 {[%clk 0:01:16.1]} 27. Bc2 {[%clk 0:01:08.9]} 27... Rxd1+ {[%clk
0:01:06.3]} 28. Bxd1 {[%clk 0:01:08.2]} 28... g5 {[%clk 0:01:05.2]} 29. Ng2
{[%clk 0:01:03.9]} 29... gxh4 {[%clk 0:01:00.1]} 30. Rxh4 {[%clk 0:00:56.9]}
30... Rd8 {[%clk 0:01:00.2]} 31. Ne3 {[%clk 0:00:53.6]} 31... Rd2 {[%clk
0:00:49.4]} 32. Rh2 {[%clk 0:00:34.5]} 32... Nd5 {[%clk 0:00:45.8]} 33. Kc1
{[%clk 0:00:27.9]} 33... Nxe3 {[%clk 0:00:22]} 34. Rh8+ {[%clk 0:00:22.6]} 34...
Kc7 {[%clk 0:00:21.8]} 35. Bb3 {[%clk 0:00:21.2]} 35... Rd1+ {[%clk 0:00:17.9]}
36. Bxd1 {[%clk 0:00:20.6]} 36... Nxd1 {[%clk 0:00:18.4]} 37. Rh3 {[%clk
0:00:14.3]} 37... Nxf2 {[%clk 0:00:17.2]} 38. Rf3 {[%clk 0:00:14.2]} 38... Nxg4
{[%clk 0:00:14.7]} 39. Rxf7+ {[%clk 0:00:14.2]} 39... Kb6 {[%clk 0:00:15.3]} 40.
Rxg7 {[%clk 0:00:15.1]} 40... Ne5 {[%clk 0:00:14]} 41. Rg3 {[%clk 0:00:11.9]}
41... Nc4 {[%clk 0:00:13.7]} 42. Kb1 {[%clk 0:00:10.5]} 42... a5 {[%clk
0:00:06.7]} 43. Ka2 {[%clk 0:00:10.2]} 43... a4 {[%clk 0:00:07.1]} 44. Rg5
{[%clk 0:00:09.6]} 44... Kc6 {[%clk 0:00:04.7]} 45. Rg6+ {[%clk 0:00:09.9]}
45... Kc5 {[%clk 0:00:05]} 46. Rg5+ {[%clk 0:00:10.5]} 46... Kb4 {[%clk
0:00:05.1]} 47. Rg4 {[%clk 0:00:08]} 47... b5 {[%clk 0:00:05.5]} 48. Rg5 {[%clk
0:00:08.1]} 48... Ne3 {[%clk 0:00:02.8]} 49. Rh5 {[%clk 0:00:07.4]} 49... Nc2
{[%clk 0:00:03.1]} 50. Rh4+ {[%clk 0:00:07.6]} 50... Kc3 {[%clk 0:00:03.3]} 51.
Rh3+ {[%clk 0:00:08.1]} 51... Kc4 {[%clk 0:00:03.9]} 52. Rh4+ {[%clk 0:00:08.3]}
52... Kc3 {[%clk 0:00:04.2]} 53. Rh3+ {[%clk 0:00:08.4]} 53... Kc4 {[%clk
0:00:03.6]} 54. Rh4+ {[%clk 0:00:08.6]} 54... Kc5 {[%clk 0:00:04.3]} 55. Rh2
{[%clk 0:00:07.6]} 55... Nb4+ {[%clk 0:00:02.6]} 56. Kxa3 {[%clk 0:00:08.1]}
56... Nc6 {[%clk 0:00:02.6]} 57. Rh5+ {[%clk 0:00:08.5]} 57... Kc4 {[%clk
0:00:03.3]} 58. Rh4+ {[%clk 0:00:09.1]} 58... Nd4 {[%clk 0:00:03.9]} 59. Kb2
{[%clk 0:00:08.6]} 59... b4 {[%clk 0:00:04]} 60. Rh3 {[%clk 0:00:09.1]} 60... b3
{[%clk 0:00:02.8]} 61. Rh4 {[%clk 0:00:08.6]} 61... Kd3 {[%clk 0:00:01.9]} 62.
Rh3+ {[%clk 0:00:08.6]} 62... Kc4 {[%clk 0:00:02.5]} 63. Rh4 {[%clk 0:00:09.1]}
63... Kd3 {[%clk 0:00:03]} 64. Rg4 {[%clk 0:00:09.3]} 64... Nc2 {[%clk
0:00:02.8]} 65. Rxa4 {[%clk 0:00:08.9]} 65... Nd4 {[%clk 0:00:03.4]} 66. Rb4
{[%clk 0:00:09.5]} 66... Ke3 {[%clk 0:00:02.8]} 67. Kc3 {[%clk 0:00:09.7]} 67...
Ne2+ {[%clk 0:00:02]} 68. Kxb3 {[%clk 0:00:10.2]} 68... Nd4+ {[%clk 0:00:02.7]}
69. Kc4 {[%clk 0:00:10.8]} 69... Ne2 {[%clk 0:00:03.3]} 70. Kd5 {[%clk
0:00:11.1]} 70... Nc3+ {[%clk 0:00:03.3]} 71. Ke5 {[%clk 0:00:11.4]} 71... Ne2
{[%clk 0:00:03.9]} 72. Rb3+ {[%clk 0:00:11.5]} 72... Kd2 {[%clk 0:00:04.6]} 73.
Rh3 {[%clk 0:00:10.4]} 73... Nc3 {[%clk 0:00:04.4]} 74. Kd4 {[%clk 0:00:10.1]}
74... Ne2+ {[%clk 0:00:04.7]} 75. Kc4 {[%clk 0:00:10.5]} 75... Nf4 {[%clk
0:00:03.2]} 76. Rf3 {[%clk 0:00:10.6]} 76... Ne2 {[%clk 0:00:03.2]} 77. Rd3+
{[%clk 0:00:10.4]} 77... Kc2 {[%clk 0:00:03.6]} 78. Rh3 {[%clk 0:00:09.2]} 78...
Kd2 {[%clk 0:00:04.1]} 79. Rf3 {[%clk 0:00:09.2]} 79... Kc2 {[%clk 0:00:03.4]}
80. Rd3 {[%clk 0:00:09.3]} 80... Nc1 {[%clk 0:00:03.1]} 81. Rd8 {[%clk
0:00:07.4]} 81... Ne2 {[%clk 0:00:03.5]} 82. Rd7 {[%clk 0:00:06.8]} 82... Nc1
{[%clk 0:00:03.6]} 83. Kd4 {[%clk 0:00:07.2]} 83... Kd2 {[%clk 0:00:03.6]} 84.
Ke4+ {[%clk 0:00:06.6]} 84... Kc2 {[%clk 0:00:04.2]} 85. Ke3 {[%clk 0:00:05.9]}
85... Nb3 {[%clk 0:00:03.5]} 86. Rc7+ {[%clk 0:00:06.3]} 86... Kb2 {[%clk
0:00:04.1]} 87. Kd3 {[%clk 0:00:06.8]} 87... Nc1+ {[%clk 0:00:04.4]} 88. Kc4
{[%clk 0:00:06.4]} 88... Kc2 {[%clk 0:00:04.6]} 89. Rh7 {[%clk 0:00:04.6]} 89...
Kd2 {[%clk 0:00:04.5]} 90. Rh2+ {[%clk 0:00:04.5]} 90... Ne2 {[%clk 0:00:04.8]}
91. Rg2 {[%clk 0:00:04.9]} 91... Ke3 {[%clk 0:00:05.2]} 92. Rh2 {[%clk
0:00:05.4]} 92... Kd2 {[%clk 0:00:05.1]} 93. Kd5 {[%clk 0:00:05.4]} 93... Ke3
{[%clk 0:00:05.5]} 94. Ke5 {[%clk 0:00:06]} 94... Kf3 {[%clk 0:00:05.7]} 95.
Rh3+ {[%clk 0:00:05.8]} 95... Ng3 {[%clk 0:00:05.9]} 96. Rh4 {[%clk 0:00:05.3]}
96... Ne2 {[%clk 0:00:06]} 97. Ra4 {[%clk 0:00:05.8]} 97... Ke3 {[%clk
0:00:06.4]} 98. Ra3+ {[%clk 0:00:06]} 98... Kd2 {[%clk 0:00:06.6]} 99. Ke4
{[%clk 0:00:06.5]} 99... Nc3+ {[%clk 0:00:07.2]} 100. Ke5 {[%clk 0:00:05]}
100... Ne2 {[%clk 0:00:07.4]} 101. Rh3 {[%clk 0:00:05.3]} 101... Nc3 {[%clk
0:00:07]} 102. Kd4 {[%clk 0:00:05.4]} 102... Ne2+ {[%clk 0:00:07.4]} 103. Kc4
{[%clk 0:00:05.7]} 103... Nf4 {[%clk 0:00:05.9]} 104. Rf3 {[%clk 0:00:05.8]}
104... Ne2 {[%clk 0:00:06.4]} 105. Ra3 {[%clk 0:00:05.8]} 105... Nf4 {[%clk
0:00:05.6]} 106. Kd4 {[%clk 0:00:04.2]} 106... Ne2+ {[%clk 0:00:06.1]} 107. Kd5
{[%clk 0:00:04.8]} 107... Nc3+ {[%clk 0:00:04.7]} 108. Kc4 {[%clk 0:00:05.2]}
108... Ne2 {[%clk 0:00:05.1]} 109. Rd3+ {[%clk 0:00:05.2]} 109... Kc2 {[%clk
0:00:05.3]} 110. Re3 {[%clk 0:00:05]} 110... Kd2 {[%clk 0:00:05.7]} 111. Re4
{[%clk 0:00:05.7]} 111... Ng3 {[%clk 0:00:04.9]} 112. Rg4 {[%clk 0:00:05.3]}
112... Ne2 {[%clk 0:00:05.2]} 113. Rg5 {[%clk 0:00:05.7]} 113... Ke3 {[%clk
0:00:05.2]} 114. Re5+ {[%clk 0:00:05.6]} 114... Kf3 {[%clk 0:00:05.7]} 115. Kd3
{[%clk 0:00:06.1]} 115... Nf4+ {[%clk 0:00:06.2]} 116. Kd2 {[%clk 0:00:06.8]}
116... Ng2 {[%clk 0:00:05.6]} 117. Rf5+ {[%clk 0:00:06.9]} 117... Nf4 {[%clk
0:00:06.1]} 118. Rf8 {[%clk 0:00:06.3]} 1/2-1/2

[Event "Early-Titled-Tuesday-Blitz-January-16-2024"]
[Site "Chess.com"]
[Date "2024.01.16"]
[Round "3"]
[White "HPanesso"]
[Black "01Roman"]
[Result "1-0"]
[WhiteElo "2633"]
[BlackElo "2431"]
[TimeControl "180+1"]
[EndTime "8:33:51 PST"]
[Termination "HPanesso won on time"]

1. e4 {[%clk 0:02:52.3]} 1... c5 {[%clk 0:02:58.8]} 2. Nf3 {[%clk 0:02:52.2]}
2... Nf6 {[%clk 0:02:56.1]} 3. e5 {[%clk 0:02:47.4]} 3... Nd5 {[%clk 0:02:56.2]}
4. g3 {[%clk 0:02:47.3]} 4... Nc6 {[%clk 0:02:55.5]} 5. Nc3 {[%clk 0:02:45.2]}
5... e6 {[%clk 0:02:51.8]} 6. Bg2 {[%clk 0:02:43.4]} 6... d6 {[%clk 0:02:49.5]}
7. exd6 {[%clk 0:02:42.6]} 7... Bxd6 {[%clk 0:02:47.4]} 8. O-O {[%clk
0:02:33.2]} 8... Nxc3 {[%clk 0:02:45.4]} 9. bxc3 {[%clk 0:02:28]} 9... O-O
{[%clk 0:02:45.7]} 10. d4 {[%clk 0:02:28.3]} 10... Na5 {[%clk 0:02:35.4]} 11.
Ng5 {[%clk 0:02:12.9]} 11... Be7 {[%clk 0:02:22.1]} 12. Qh5 {[%clk 0:02:04.6]}
12... h6 {[%clk 0:02:13.8]} 13. Ne4 {[%clk 0:02:04.1]} 13... cxd4 {[%clk
0:02:12.8]} 14. cxd4 {[%clk 0:02:05]} 14... Nc6 {[%clk 0:02:09.5]} 15. Be3
{[%clk 0:01:56.1]} 15... Qa5 {[%clk 0:02:05]} 16. Qe2 {[%clk 0:01:50.2]} 16...
Rd8 {[%clk 0:02:01.4]} 17. Rfd1 {[%clk 0:01:49.5]} 17... Nb4 {[%clk 0:01:57.1]}
18. c4 {[%clk 0:01:45.4]} 18... Bd7 {[%clk 0:01:50.5]} 19. a3 {[%clk 0:01:43.8]}
19... Nc6 {[%clk 0:01:48]} 20. d5 {[%clk 0:01:43.6]} 20... exd5 {[%clk
0:01:43.2]} 21. cxd5 {[%clk 0:01:43.1]} 21... Ne5 {[%clk 0:01:43.4]} 22. d6
{[%clk 0:01:41.5]} 22... Bf8 {[%clk 0:01:43.1]} 23. Rd5 {[%clk 0:01:39.8]} 23...
Qxd5 {[%clk 0:01:38.4]} 24. Nf6+ {[%clk 0:01:39.4]} 24... gxf6 {[%clk
0:01:37.9]} 25. Bxd5 {[%clk 0:01:40.3]} 25... Bg4 {[%clk 0:01:23.4]} 26. f3
{[%clk 0:01:21.6]} 26... Bf5 {[%clk 0:01:18.3]} 27. Bxb7 {[%clk 0:01:16.9]}
27... Rab8 {[%clk 0:01:16.8]} 28. Be4 {[%clk 0:01:17.6]} 28... Bxe4 {[%clk
0:01:11.4]} 29. fxe4 {[%clk 0:01:17.7]} 29... Rxd6 {[%clk 0:01:11.8]} 30. Rd1
{[%clk 0:01:09.7]} 30... Rxd1+ {[%clk 0:00:22.8]} 31. Qxd1 {[%clk 0:01:10.6]}
31... Bxa3 {[%clk 0:00:22.5]} 32. Bxa7 {[%clk 0:01:08.5]} 32... Rb2 {[%clk
0:00:19.2]} 33. Kh1 {[%clk 0:00:49.9]} 33... Bf8 {[%clk 0:00:15.2]} 34. Bd4
{[%clk 0:00:47.1]} 34... Rb4 {[%clk 0:00:12.5]} 35. Bxe5 {[%clk 0:00:47.2]}
35... fxe5 {[%clk 0:00:13.4]} 36. Qf3 {[%clk 0:00:46.8]} 36... Bg7 {[%clk
0:00:11.3]} 37. h4 {[%clk 0:00:47.1]} 37... Rb6 {[%clk 0:00:09.4]} 38. Kg2
{[%clk 0:00:47.4]} 38... Rg6 {[%clk 0:00:08.7]} 39. Kh3 {[%clk 0:00:47.4]} 39...
Rf6 {[%clk 0:00:09]} 40. Qd3 {[%clk 0:00:47.5]} 40... Re6 {[%clk 0:00:09.4]} 41.
Qd5 {[%clk 0:00:47.5]} 41... Bf8 {[%clk 0:00:09.4]} 42. Qd7 {[%clk 0:00:46.6]}
42... Bg7 {[%clk 0:00:08.6]} 43. Kg4 {[%clk 0:00:45.8]} 43... Bf8 {[%clk
0:00:08.9]} 44. h5 {[%clk 0:00:46]} 44... Bg7 {[%clk 0:00:08.9]} 45. Kf3 {[%clk
0:00:46.4]} 45... Bf8 {[%clk 0:00:08.4]} 46. g4 {[%clk 0:00:46.8]} 46... Bg7
{[%clk 0:00:08.9]} 47. Ke2 {[%clk 0:00:47.3]} 47... Bf8 {[%clk 0:00:08.9]} 48.
Qd8 {[%clk 0:00:47.5]} 48... Kg7 {[%clk 0:00:08.2]} 49. g5 {[%clk 0:00:47.6]}
49... hxg5 {[%clk 0:00:09.1]} 50. Qxg5+ {[%clk 0:00:48.5]} 50... Kh7 {[%clk
0:00:09.1]} 51. Qf5+ {[%clk 0:00:48.1]} 51... Kg8 {[%clk 0:00:08.8]} 52. Kd3
{[%clk 0:00:47.9]} 52... Bg7 {[%clk 0:00:09]} 53. Qg5 {[%clk 0:00:48.2]} 53...
Rh6 {[%clk 0:00:09.3]} 54. Kc4 {[%clk 0:00:47.9]} 54... Re6 {[%clk 0:00:09.9]}
55. Kd5 {[%clk 0:00:48]} 55... Rh6 {[%clk 0:00:10]} 56. Qd8+ {[%clk 0:00:47.6]}
56... Kh7 {[%clk 0:00:10.1]} 57. Qe8 {[%clk 0:00:47.3]} 57... Rf6 {[%clk
0:00:09.9]} 58. Qe7 {[%clk 0:00:46.7]} 58... Kg8 {[%clk 0:00:08.4]} 59. Kc4
{[%clk 0:00:44.4]} 59... Re6 {[%clk 0:00:08.9]} 60. Qg5 {[%clk 0:00:42.6]} 60...
Kh7 {[%clk 0:00:08.1]} 61. Kd3 {[%clk 0:00:41.7]} 61... Kg8 {[%clk 0:00:08.4]}
62. Qf5 {[%clk 0:00:41.7]} 62... Kf8 {[%clk 0:00:07.8]} 63. Ke2 {[%clk
0:00:40.9]} 63... Kg8 {[%clk 0:00:08.1]} 64. Ke1 {[%clk 0:00:40.1]} 64... Kf8
{[%clk 0:00:08.4]} 65. Qg5 {[%clk 0:00:39]} 65... Kg8 {[%clk 0:00:08.8]} 66.
Qd8+ {[%clk 0:00:37]} 66... Kh7 {[%clk 0:00:08.6]} 67. Qd7 {[%clk 0:00:37.6]}
67... Kg8 {[%clk 0:00:08.4]} 68. Ke2 {[%clk 0:00:37.4]} 68... Bf8 {[%clk
0:00:07.8]} 69. Kf3 {[%clk 0:00:35.9]} 69... Bh6 {[%clk 0:00:08]} 70. Kg4 {[%clk
0:00:35.9]} 70... Bf4 {[%clk 0:00:07.4]} 71. Kf5 {[%clk 0:00:35.4]} 71... Bh6
{[%clk 0:00:07.3]} 72. Qd8+ {[%clk 0:00:34.9]} 72... Kg7 {[%clk 0:00:07.4]} 73.
Qh4 {[%clk 0:00:34.5]} 73... Bf4 {[%clk 0:00:07.6]} 74. Kg4 {[%clk 0:00:32.6]}
74... Bh6 {[%clk 0:00:07.4]} 75. Qd8 {[%clk 0:00:32]} 75... Bf4 {[%clk
0:00:06.8]} 76. Kf3 {[%clk 0:00:31.1]} 76... Bh6 {[%clk 0:00:07.3]} 77. Ke2
{[%clk 0:00:31.3]} 77... Bf4 {[%clk 0:00:07.9]} 78. Kd3 {[%clk 0:00:31.6]} 78...
Bh6 {[%clk 0:00:08.6]} 79. Qd7 {[%clk 0:00:32.2]} 79... Bf4 {[%clk 0:00:09]} 80.
Kc4 {[%clk 0:00:32.5]} 80... Bh6 {[%clk 0:00:09.4]} 81. Kd5 {[%clk 0:00:33]}
81... Bf4 {[%clk 0:00:10]} 82. Qd8 {[%clk 0:00:32.6]} 82... Bh6 {[%clk
0:00:10.1]} 83. Qh4 {[%clk 0:00:32.8]} 83... Bf4 {[%clk 0:00:10.5]} 84. Qg4+
{[%clk 0:00:33.3]} 84... Kh7 {[%clk 0:00:10.5]} 85. Qf3 {[%clk 0:00:32.2]} 85...
Kg7 {[%clk 0:00:10.7]} 86. Qf2 {[%clk 0:00:32.2]} 86... Bh6 {[%clk 0:00:10.3]}
87. Qf5 {[%clk 0:00:30.8]} 87... Bf4 {[%clk 0:00:10.3]} 88. h6+ {[%clk
0:00:31.1]} 88... Bxh6 {[%clk 0:00:10.3]} 89. Qg4+ {[%clk 0:00:31.5]} 89... Kh7
{[%clk 0:00:09.9]} 90. Qh5 {[%clk 0:00:31.6]} 90... Kg7 {[%clk 0:00:10.1]} 91.
Kc4 {[%clk 0:00:31.9]} 91... Bf4 {[%clk 0:00:09.9]} 92. Kd3 {[%clk 0:00:32]}
92... Rg6 {[%clk 0:00:10.5]} 93. Qf5 {[%clk 0:00:30.8]} 93... Rg5 {[%clk
0:00:10.3]} 94. Qd7 {[%clk 0:00:30.4]} 94... Rg3+ {[%clk 0:00:10.5]} 95. Kc4
{[%clk 0:00:28.9]} 95... Rg6 {[%clk 0:00:11.4]} 96. Qf5 {[%clk 0:00:27.4]} 96...
Rg3 {[%clk 0:00:11.9]} 97. Kd5 {[%clk 0:00:26.7]} 97... Rg6 {[%clk 0:00:12.5]}
98. Kc5 {[%clk 0:00:26.8]} 98... Rg5 {[%clk 0:00:12.7]} 99. Qh3 {[%clk
0:00:26.5]} 99... Rg3 {[%clk 0:00:12.9]} 100. Qh5 {[%clk 0:00:24.9]} 100... Rg6
{[%clk 0:00:12.8]} 101. Kd5 {[%clk 0:00:24.6]} 101... Rg3 {[%clk 0:00:12.8]}
102. Kd6 {[%clk 0:00:24.1]} 102... Rd3+ {[%clk 0:00:12.6]} 103. Ke7 {[%clk
0:00:24.2]} 103... f6 {[%clk 0:00:09.5]} 104. Qf7+ {[%clk 0:00:23.8]} 104... Kh6
{[%clk 0:00:09.7]} 105. Kxf6 {[%clk 0:00:19.5]} 105... Rg3 {[%clk 0:00:08.6]}
106. Qf8+ {[%clk 0:00:18.8]} 106... Kh5 {[%clk 0:00:08.8]} 107. Qh8+ {[%clk
0:00:18.4]} 107... Kg4 {[%clk 0:00:09.1]} 108. Qc8+ {[%clk 0:00:18.3]} 108...
Kf3 {[%clk 0:00:09.2]} 109. Qc4 {[%clk 0:00:17.1]} 109... Ke3 {[%clk 0:00:07.9]}
110. Ke6 {[%clk 0:00:16.4]} 110... Rg6+ {[%clk 0:00:07.5]} 111. Kd5 {[%clk
0:00:16.8]} 111... Rg3 {[%clk 0:00:06.6]} 112. Qc2 {[%clk 0:00:16.4]} 112... Rf3
{[%clk 0:00:04.9]} 113. Kc4 {[%clk 0:00:15.1]} 113... Rg3 {[%clk 0:00:05]} 114.
Kd5 {[%clk 0:00:13.6]} 114... Rf3 {[%clk 0:00:04.8]} 115. Qd1 {[%clk 0:00:13.4]}
115... Rg3 {[%clk 0:00:04.7]} 116. Qe1+ {[%clk 0:00:13.7]} 116... Kf3 {[%clk
0:00:04.8]} 117. Ke6 {[%clk 0:00:14]} 117... Rh3 {[%clk 0:00:04]} 118. Kf5
{[%clk 0:00:13.5]} 118... Rg3 {[%clk 0:00:04]} 119. Qc3+ {[%clk 0:00:12.4]}
119... Kf2 {[%clk 0:00:04.3]} 120. Qc2+ {[%clk 0:00:12.5]} 120... Kf3 {[%clk
0:00:04.8]} 121. Qd3+ {[%clk 0:00:12.8]} 121... Kf2 {[%clk 0:00:05.3]} 122. Qd5
{[%clk 0:00:13.1]} 122... Rg5+ {[%clk 0:00:05.2]} 123. Ke6 {[%clk 0:00:13.4]}
123... Rg3 {[%clk 0:00:06.1]} 124. Qa2+ {[%clk 0:00:12.6]} 124... Kf3 {[%clk
0:00:06.2]} 125. Kd5 {[%clk 0:00:13.2]} 125... Rg2 {[%clk 0:00:05.7]} 126. Qb3+
{[%clk 0:00:13.3]} 126... Kg4 {[%clk 0:00:05.5]} 127. Ke6 {[%clk 0:00:12.3]}
127... Rg3 {[%clk 0:00:04.7]} 128. Qd1+ {[%clk 0:00:12.7]} 128... Kh4 {[%clk
0:00:03.9]} 129. Kf6 {[%clk 0:00:11.9]} 129... Kh3 {[%clk 0:00:03.6]} 130. Qh1+
{[%clk 0:00:11.9]} 130... Kg4 {[%clk 0:00:03.5]} 131. Kg6 {[%clk 0:00:11.3]}
131... Be3 {[%clk 0:00:02.1]} 132. Qh5+ {[%clk 0:00:09.6]} 132... Kf4+ {[%clk
0:00:03]} 133. Kf6 {[%clk 0:00:07.5]} 133... Bd4 {[%clk 0:00:03.3]} 134. Qf5+
{[%clk 0:00:06.8]} 134... Ke3 {[%clk 0:00:03.2]} 135. Ke6 {[%clk 0:00:07.5]}
135... Rf3 {[%clk 0:00:02.8]} 136. Qg5+ {[%clk 0:00:07.7]} 136... Rf4 {[%clk
0:00:03.1]} 137. Kd5 {[%clk 0:00:07.4]} 137... Kf3 {[%clk 0:00:02.9]} 138. Qh5+
{[%clk 0:00:04.9]} 138... Ke3 {[%clk 0:00:03.4]} 139. Qd1 {[%clk 0:00:05.3]} 1-0

[Event "Early-Titled-Tuesday-Blitz-January-16-2024"]
[Site "Chess.com"]
[Date "2024.01.16"]
[Round "4"]
[White "guillembaches"]
[Black "KanalSzachowy"]
[Result "1/2-1/2"]
[WhiteElo "2519"]
[BlackElo "2339"]
[TimeControl "180+1"]
[EndTime "8:35:48 PST"]
[Termination "Game drawn by repetition"]

1. d4 {[%clk 0:03:00.9]} 1... Nf6 {[%clk 0:02:59.7]} 2. Nf3 {[%clk 0:03:01.4]}
2... e6 {[%clk 0:02:59.9]} 3. Bg5 {[%clk 0:03:02]} 3... c5 {[%clk 0:02:59.6]} 4.
e3 {[%clk 0:03:01.8]} 4... h6 {[%clk 0:03:00]} 5. Bh4 {[%clk 0:03:01.7]} 5...
Be7 {[%clk 0:03:00.2]} 6. Nbd2 {[%clk 0:03:01.6]} 6... O-O {[%clk 0:02:59.3]} 7.
Bd3 {[%clk 0:03:01.5]} 7... Nc6 {[%clk 0:02:58.1]} 8. c3 {[%clk 0:03:01.3]} 8...
b6 {[%clk 0:02:54.9]} 9. O-O {[%clk 0:02:59.4]} 9... Bb7 {[%clk 0:02:54.9]} 10.
Qe2 {[%clk 0:02:56.1]} 10... d5 {[%clk 0:02:53.8]} 11. Rad1 {[%clk 0:02:51.5]}
11... Qc7 {[%clk 0:02:33.9]} 12. Bg3 {[%clk 0:02:42.5]} 12... Bd6 {[%clk
0:02:30.5]} 13. Bh4 {[%clk 0:02:42.8]} 13... Be7 {[%clk 0:02:20.4]} 14. Bg3
{[%clk 0:02:42.5]} 14... Bd6 {[%clk 0:02:20.6]} 15. Bh4 {[%clk 0:02:42.8]} 15...
Be7 {[%clk 0:02:21.1]} 1/2-1/2

[Event "Early-Titled-Tuesday-Blitz-January-16-2024"]
[Site "Chess.com"]
[Date "2024.01.16"]
[Round "4"]
[White "Zavgorodniy_Sergiy"]
[Black "Glaive_64"]
[Result "1-0"]
[WhiteElo "2594"]
[BlackElo "2349"]
[TimeControl "180+1"]
[EndTime "8:36:04 PST"]
[Termination "Zavgorodniy_Sergiy won by resignation"]

1. e4 {[%clk 0:03:00.9]} 1... d6 {[%clk 0:02:53.1]} 2. Nc3 {[%clk 0:02:59.5]}
2... Nf6 {[%clk 0:02:53.4]} 3. g3 {[%clk 0:03:00]} 3... g6 {[%clk 0:02:53.7]} 4.
Bg2 {[%clk 0:03:00.5]} 4... Bg7 {[%clk 0:02:54.5]} 5. Nge2 {[%clk 0:03:01]} 5...
O-O {[%clk 0:02:55.3]} 6. d4 {[%clk 0:03:00.7]} 6... e5 {[%clk 0:02:54.7]} 7. h3
{[%clk 0:02:58.5]} 7... Nbd7 {[%clk 0:02:53]} 8. O-O {[%clk 0:02:57.7]} 8... h6
{[%clk 0:02:53.1]} 9. Be3 {[%clk 0:02:56.9]} 9... c6 {[%clk 0:02:51.7]} 10. a4
{[%clk 0:02:56]} 10... a5 {[%clk 0:02:51.4]} 11. Qd2 {[%clk 0:02:54.2]} 11...
Qc7 {[%clk 0:02:47.6]} 12. Bxh6 {[%clk 0:02:53.1]} 12... exd4 {[%clk 0:02:43.6]}
13. Nxd4 {[%clk 0:02:52.3]} 13... Ne5 {[%clk 0:02:40.2]} 14. Bxg7 {[%clk
0:02:52.4]} 14... Kxg7 {[%clk 0:02:41.1]} 15. f4 {[%clk 0:02:52.4]} 15... Nc4
{[%clk 0:02:40.9]} 16. Qe2 {[%clk 0:02:48.1]} 16... d5 {[%clk 0:02:31.8]} 17. e5
{[%clk 0:02:46]} 17... Nh5 {[%clk 0:02:32.2]} 18. Qf2 {[%clk 0:02:37.4]} 18...
Nxb2 {[%clk 0:02:26.9]} 19. g4 {[%clk 0:02:36.6]} 19... c5 {[%clk 0:02:24.1]}
20. Ndb5 {[%clk 0:02:35.4]} 1-0

[Event "Early-Titled-Tuesday-Blitz-January-16-2024"]
[Site "Chess.com"]
[Date "2024.01.16"]
[Round "4"]
[White "cristiano78"]
[Black "aghasiyevkamal"]
[Result "0-1"]
[WhiteElo "2260"]
[BlackElo "2622"]
[TimeControl "180+1"]
[EndTime "8:36:10 PST"]
[Termination "aghasiyevkamal won by resignation"]

1. d4 {[%clk 0:03:00.9]} 1... d5 {[%clk 0:02:53.8]} 2. c4 {[%clk 0:02:58]} 2...
e6 {[%clk 0:02:53.6]} 3. Nf3 {[%clk 0:02:50.7]} 3... Nf6 {[%clk 0:02:52.2]} 4.
Nc3 {[%clk 0:02:50.8]} 4... Be7 {[%clk 0:02:52]} 5. Bg5 {[%clk 0:02:51.2]} 5...
Nbd7 {[%clk 0:02:51.5]} 6. e3 {[%clk 0:02:51.2]} 6... h6 {[%clk 0:02:51.9]} 7.
Bh4 {[%clk 0:02:51.3]} 7... O-O {[%clk 0:02:52.5]} 8. Rc1 {[%clk 0:02:51.2]}
8... c5 {[%clk 0:02:52.6]} 9. dxc5 {[%clk 0:02:50.8]} 9... dxc4 {[%clk 0:02:53]}
10. c6 {[%clk 0:02:49.3]} 10... bxc6 {[%clk 0:02:53.4]} 11. Bxc4 {[%clk
0:02:49.3]} 11... c5 {[%clk 0:02:52.5]} 12. O-O {[%clk 0:02:49.1]} 12... Bb7
{[%clk 0:02:52.7]} 13. Qe2 {[%clk 0:02:49.1]} 13... Nb6 {[%clk 0:02:53]} 14. Ba6
{[%clk 0:02:48.9]} 14... Qc8 {[%clk 0:02:52.8]} 15. Bxb7 {[%clk 0:02:48.9]}
15... Qxb7 {[%clk 0:02:53.4]} 16. Na4 {[%clk 0:02:46.4]} 16... Nxa4 {[%clk
0:02:50.6]} 17. b3 {[%clk 0:02:41.9]} 17... Nb6 {[%clk 0:02:50]} 18. Bxf6 {[%clk
0:02:41.6]} 18... Bxf6 {[%clk 0:02:46.1]} 19. Rxc5 {[%clk 0:02:41.7]} 19... Rac8
{[%clk 0:02:45.1]} 20. Rfc1 {[%clk 0:02:41.7]} 20... Rxc5 {[%clk 0:02:45.2]} 21.
Rxc5 {[%clk 0:02:42.4]} 21... Rc8 {[%clk 0:02:45.8]} 22. Qc2 {[%clk 0:02:42.5]}
22... Rxc5 {[%clk 0:02:45.2]} 23. Qxc5 {[%clk 0:02:43.1]} 23... Qd5 {[%clk
0:02:45.6]} 24. Qxd5 {[%clk 0:02:42.7]} 24... Nxd5 {[%clk 0:02:46.3]} 25. Kf1
{[%clk 0:02:43.2]} 25... g5 {[%clk 0:02:45.1]} 26. a4 {[%clk 0:02:42.2]} 26...
Bc3 {[%clk 0:02:39.4]} 27. Ke2 {[%clk 0:02:41.3]} 27... Nb4 {[%clk 0:02:39.6]}
28. h3 {[%clk 0:02:39.3]} 28... Kg7 {[%clk 0:02:39.4]} 0-1